bitfinex/quotes_BTCUSD_20250219
["timestamp","ask_amount","ask_price","bid_price","bid_amount"]
[1739947214534,0.0004254,95586.0,95575.0,0.0008506]
[1739947214750,0.156943,95576.0,95575.0,0.0008506]
[1739947214978,0.15694,95578.0,95575.0,0.0008506]
[1739947215402,0.209248,95581.0,95575.0,0.0008506]
[1739947215620,0.156942,95577.0,95575.0,0.0008506]
[1739947216252,0.156943,95576.0,95575.0,0.0008506]
[1739947217761,0.156943,95576.0,95575.0,0.0018506]
[1739947217964,0.17334307,95576.0,95575.0,0.0018506]
[1739947218687,0.01640007,95576.0,95575.0,0.0018506]
[1739947225866,0.156939,95578.0,95575.0,0.0018506]
[1739947227492,0.156938,95580.0,95575.0,0.0018506]
[1739947228011,0.156938,95579.0,95575.0,0.0008506]
[1739947228231,0.156938,95579.0,95575.0,0.0018506]
[1739947228410,0.156938,95579.0,95575.0,0.0008506]
[1739947228922,0.17333777,95579.0,95575.0,0.0008506]
[1739947230578,0.156939,95578.0,95575.0,0.0008506]
[1739947231482,0.01639977,95579.0,95575.0,0.0008506]
[1739947231895,0.17333877,95579.0,95575.0,0.0008506]
[1739947232108,0.17333877,95579.0,95575.0,0.0018506]
[1739947232333,0.01639977,95579.0,95575.0,0.0008506]
[1739947232903,0.17333777,95579.0,95575.0,0.0008506]
[1739947234402,0.01639977,95579.0,95575.0,0.0008506]
[1739947236760,0.156937,95580.0,95575.0,0.0008506]
[1739947236944,0.156938,95579.0,95575.0,0.0008506]
[1739947237594,0.156936,95581.0,95575.0,0.0008506]
[1739947237929,0.2096614,95586.0,95575.0,0.0008506]
[1739947238337,0.156938,95579.0,95575.0,0.0008506]
[1739947239196,0.0024254,95586.0,95575.0,0.0008506]
[1739947239452,0.156939,95578.0,95575.0,0.0008506]
[1739947239817,0.156941,95577.0,95575.0,0.0008506]
[1739947240021,0.156939,95579.0,95575.0,0.0008506]
[1739947240221,0.15694,95578.0,95575.0,0.0008506]
[1739947240776,0.156941,95577.0,95575.0,0.0008506]
[1739947242179,0.156941,95577.0,95575.0,0.0018506]
[1739947242625,0.156941,95577.0,95575.0,0.0008506]
[1739947242866,0.156941,95577.0,95575.0,0.0018506]
[1739947243797,0.156941,95577.0,95575.0,0.0008506]
[1739947243997,0.156941,95577.0,95575.0,0.0018506]
[1739947247198,0.0004254,95586.0,95575.0,0.0018506]
[1739947247410,0.156942,95577.0,95575.0,0.0018506]
[1739947247824,0.20925,95580.0,95575.0,0.0018506]
[1739947248029,0.156939,95578.0,95575.0,0.0018506]
[1739947248676,0.156942,95577.0,95575.0,0.0018506]
[1739947248888,0.156942,95577.0,95575.0,0.0008506]
[1739947249542,0.15,95592.0,95575.0,0.0008506]
[1739947249752,4e-05,95682.0,95575.0,0.0008506]
[1739947249753,0.17334291,95577.0,95575.0,0.00198163]
[1739947250155,0.156943,95577.0,95575.0,0.00098163]
[1739947250359,0.17334287,95577.0,95575.0,0.00198163]
[1739947253235,0.01639987,95577.0,95575.0,0.00198163]
[1739947254021,0.156938,95579.0,95575.0,0.00198163]
[1739947254847,0.156938,95579.0,95576.0,0.01964218]
[1739947255127,0.156941,95577.0,95576.0,0.01964218]
[1739947255325,0.40944465,95577.0,95576.0,0.01964218]
[1739947255532,0.44087074,95577.0,95576.0,0.01964218]
[1739947255745,0.40944465,95577.0,95576.0,0.01964218]
[1739947256225,0.50529872,95577.0,95576.0,0.02064218]
[1739947256455,0.156943,95576.0,95575.0,0.00098163]
[1739947256666,0.25944665,95576.0,95575.0,0.00098163]
[1739947257000,0.27584872,95576.0,95575.0,0.00098163]
[1739947258919,0.52835237,95576.0,95575.0,0.00098163]
[1739947259136,0.306944,95575.0,95574.0,0.0008506]
[1739947259359,0.40944765,95575.0,95574.0,0.0008506]
[1739947259565,0.73364765,95575.0,95574.0,0.0008506]
[1739947261054,0.57670365,95575.0,95572.0,0.0008506]
[1739947261264,0.156966,95562.0,95551.0,0.000851]
[1739947261525,0.25946965,95562.0,95551.0,0.000851]
[1739947261952,0.27587325,95562.0,95551.0,0.000851]
[1739947262435,0.27787325,95562.0,95551.0,0.000851]
[1739947262622,0.27587325,95562.0,95551.0,0.000851]
[1739947263094,0.42787325,95562.0,95551.0,0.000851]
[1739947263894,0.41146965,95562.0,95551.0,0.000851]
[1739947265389,0.40946965,95562.0,95551.0,0.000851]
[1739947265697,0.41146965,95562.0,95551.0,0.000851]
[1739947266386,0.308966,95562.0,95561.0,0.081051]
[1739947266839,0.32536906,95562.0,95561.0,0.081051]
[1739947267723,0.01840306,95562.0,95561.0,0.081051]
[1739947268523,0.01640306,95562.0,95561.0,0.081051]
[1739947268738,0.17336906,95562.0,95561.0,0.081051]
[1739947268943,0.17636906,95562.0,95561.0,0.081051]
[1739947269678,0.17336906,95562.0,95561.0,0.081051]
[1739947270158,0.17636906,95562.0,95561.0,0.081051]
[1739947270369,0.17336906,95562.0,95561.0,0.081051]
[1739947270584,0.17636906,95562.0,95561.0,0.081051]
[1739947270799,0.3242,95584.0,95561.0,0.081051]
[1739947271012,0.10250365,95583.0,95561.0,0.081051]
[1739947271250,0.0164022,95562.0,95561.0,0.081051]
[1739947271460,0.156959,95567.0,95561.0,0.081051]
[1739947271669,0.156959,95566.0,95561.0,0.081051]
[1739947272149,0.0004255,95575.0,95561.0,0.081051]
[1739947272352,0.001,95562.0,95561.0,0.081051]
[1739947272767,0.156966,95562.0,95561.0,0.081051]
[1739947273193,0.17336923,95562.0,95561.0,0.081051]
[1739947273416,0.156966,95562.0,95561.0,0.081051]
[1739947273624,0.157966,95562.0,95561.0,0.081051]
[1739947276382,0.17436816,95562.0,95561.0,0.081051]
[1739947278092,0.01740216,95562.0,95561.0,0.081051]
[1739947278313,0.17436816,95562.0,95561.0,0.081051]
[1739947278522,0.01740216,95562.0,95561.0,0.081051]
[1739947282210,0.01740216,95562.0,95561.0,0.238018]
[1739947283693,0.001,95562.0,95561.0,0.238018]
[1739947286667,0.01740145,95562.0,95561.0,0.238018]
[1739947293732,0.001,95562.0,95561.0,0.238018]
[1739947296700,0.01740108,95562.0,95561.0,0.238018]
[1739947297132,0.01740108,95562.0,95561.0,0.25762021]
[1739947306891,0.001,95562.0,95561.0,0.25762021]
[1739947309758,0.15601315,95581.0,95575.0,0.156944]
[1739947309963,0.156934,95582.0,95574.0,0.209261]
[1739947310142,0.156934,95582.0,95576.0,0.156942]
[1739947310345,0.01640023,95580.0,95576.0,0.156942]
[1739947311335,0.01640023,95580.0,95577.0,0.156941]
[1739947311531,0.01640023,95580.0,95574.0,0.209261]
[1739947311731,0.01640023,95580.0,95573.0,0.0768]
[1739947311732,0.01640023,95580.0,95577.0,0.156941]
[1739947311938,0.01640023,95580.0,95576.0,0.001]
[1739947312306,0.01640023,95580.0,95577.0,0.05684]
[1739947312511,0.02340023,95580.0,95577.0,0.05784]
[1739947312903,0.01640023,95580.0,95577.0,0.05684]
[1739947313157,0.01640023,95580.0,95578.0,0.156939]
[1739947313372,0.02340023,95580.0,95579.0,0.156938]
[1739947313589,0.01640023,95580.0,95579.0,0.156938]
[1739947313802,7.767e-05,95585.0,95584.0,0.15693]
[1739947314014,7.767e-05,95585.0,95583.0,0.156931]
[1739947314657,7.767e-05,95585.0,95583.0,0.15693]
[1739947314866,7.767e-05,95585.0,95582.0,0.0779]
[1739947315245,7.767e-05,95585.0,95582.0,0.234833]
[1739947315602,0.00707767,95585.0,95583.0,0.001]
[1739947315815,7.767e-05,95585.0,95582.0,0.0779]
[1739947316245,0.00707767,95585.0,95582.0,0.0789]
[1739947316471,0.156953,95570.0,95569.0,0.0782]
[1739947316668,0.10417648,95585.0,95563.0,0.0782]
[1739947316873,0.10417648,95585.0,95583.0,0.001]
[1739947316874,0.25943365,95584.0,95583.0,0.001]
[1739947317070,0.46867365,95584.0,95583.0,0.001]
[1739947318059,0.31174365,95584.0,95561.0,0.157818]
[1739947318267,0.156956,95568.0,95561.0,0.157818]
[1739947318460,0.156951,95571.0,95564.0,0.156962]
[1739947318868,0.0164004,95570.0,95564.0,0.156962]
[1739947319704,0.156954,95569.0,95562.0,0.156965]
[1739947319910,0.156954,95569.0,95561.0,0.000851]
[1739947320126,0.156954,95569.0,95563.0,0.156964]
[1739947320336,0.0164004,95570.0,95561.0,0.000851]
[1739947320535,0.156963,95564.0,95561.0,0.000851]
[1739947320974,0.209279,95566.0,95561.0,0.000851]
[1739947321171,0.156961,95565.0,95561.0,0.000851]
[1739947321795,0.002,95564.0,95561.0,0.000851]
[1739947322227,0.156966,95562.0,95561.0,0.000851]
[1739947322448,0.156964,95564.0,95561.0,0.000851]
[1739947322808,0.01617236,95564.0,95561.0,0.000851]
[1739947322989,0.156964,95563.0,95561.0,0.000851]
[1739947324662,0.001,95563.0,95561.0,0.000851]
[1739947324877,0.156966,95562.0,95561.0,0.000851]
[1739947325285,0.001,95563.0,95561.0,0.000851]
[1739947325920,0.156966,95562.0,95561.0,0.000851]
[1739947326354,0.157966,95562.0,95561.0,0.000851]
[1739947327637,0.17336861,95562.0,95561.0,0.000851]
[1739947328590,0.17436861,95562.0,95561.0,0.000851]
[1739947331473,0.32436861,95562.0,95561.0,0.000851]
[1739947332133,0.22550086,95564.0,95561.0,0.000851]
[1739947332343,0.10250365,95563.0,95561.0,0.000851]
[1739947332776,0.156966,95562.0,95561.0,0.000851]
[1739947332969,0.22550086,95564.0,95561.0,0.000851]
[1739947333332,0.156966,95562.0,95561.0,0.000851]
[1739947334880,0.157966,95562.0,95561.0,0.000851]
[1739947335878,0.17436926,95562.0,95561.0,0.000851]
[1739947338207,0.20310456,95564.0,95561.0,0.000851]
[1739947338652,0.156966,95562.0,95561.0,0.000851]
[1739947339608,0.40946965,95562.0,95561.0,0.000851]
[1739947339845,0.57277405,95562.0,95561.0,0.000851]
[1739947341452,0.6752777,95562.0,95561.0,0.000851]
[1739947341814,0.6782777,95562.0,95561.0,0.000851]
[1739947344653,0.6618733,95562.0,95561.0,0.000851]
[1739947344856,0.9860733,95562.0,95561.0,0.000851]
[1739947345170,0.9830733,95562.0,95561.0,0.000851]
[1739947345370,0.9880733,95562.0,95561.0,0.000851]
[1739947345789,0.9830733,95562.0,95561.0,0.000851]
[1739947345993,0.995972,95562.0,95561.0,0.000851]
[1739947346366,0.990972,95562.0,95561.0,0.000851]
[1739947346553,0.997972,95562.0,95561.0,0.001851]
[1739947347609,1.01437615,95562.0,95561.0,0.001851]
[1739947347951,1.00737615,95562.0,95561.0,0.000851]
[1739947348352,1.01337615,95562.0,95561.0,0.000851]
[1739947348674,0.93667615,95562.0,95561.0,0.000851]
[1739947349083,0.93067615,95562.0,95561.0,0.000851]
[1739947349422,0.93667615,95562.0,95561.0,0.000851]
[1739947354914,0.920272,95562.0,95561.0,0.000851]
[1739947357420,0.77056835,95562.0,95561.0,0.000851]
[1739947357662,0.81893865,95562.0,95561.0,0.000851]
[1739947358830,0.81293865,95562.0,95561.0,0.000851]
[1739947359195,0.81793865,95562.0,95561.0,0.000851]
[1739947361415,0.81293865,95562.0,95561.0,0.000851]
[1739947361633,0.81893865,95562.0,95561.0,0.000851]
[1739947362822,0.80253345,95562.0,95561.0,0.000851]
[1739947364506,0.79653345,95562.0,95561.0,0.000851]
[1739947364750,0.80253345,95562.0,95561.0,0.000851]
[1739947364951,0.79653345,95562.0,95561.0,0.000851]
[1739947365400,0.80253345,95562.0,95561.0,0.000851]
[1739947365603,0.81893867,95562.0,95561.0,0.000851]
[1739947365850,0.92144232,95562.0,95561.0,0.000851]
[1739947366066,0.88947722,95562.0,95561.0,0.000851]
[1739947366948,0.78697357,95562.0,95561.0,0.000851]
[1739947370691,0.78097357,95562.0,95561.0,0.000851]
[1739947371040,0.78697357,95562.0,95561.0,0.000851]
[1739947371281,0.78097357,95562.0,95561.0,0.000851]
[1739947371745,0.78697357,95562.0,95561.0,0.000851]
[1739947373485,0.54167169,95562.0,95561.0,0.000851]
[1739947373690,0.69863769,95562.0,95561.0,0.000851]
[1739947373899,0.69263769,95562.0,95561.0,0.000851]
[1739947374369,0.69863769,95562.0,95561.0,0.000851]
[1739947375387,0.6301483,95562.0,95561.0,0.000851]
[1739947375648,0.4671823,95562.0,95561.0,0.128751]
[1739947375901,0.6291483,95562.0,95561.0,0.128751]
[1739947376447,0.02140522,95562.0,95561.0,0.128751]
[1739947377944,0.01640522,95562.0,95561.0,0.128751]
[1739947382191,0.0004255,95563.0,95561.0,0.046751]
[1739947382437,0.0004255,95563.0,95562.0,0.0828]
[1739947384848,0.1573895,95563.0,95562.0,0.0828]
[1739947390986,0.156966,95562.0,95561.0,0.000851]
[1739947394454,0.157966,95562.0,95561.0,0.000851]
[1739947396933,0.19555669,95562.0,95561.0,0.000851]
[1739947397338,0.21855669,95562.0,95561.0,0.000851]
[1739947397546,0.77910305,95562.0,95561.0,0.000851]
[1739947397747,0.77810305,95562.0,95561.0,0.000851]
[1739947397946,0.69175669,95562.0,95561.0,0.000851]
[1739947398179,0.69275669,95562.0,95561.0,0.000851]
[1739947398881,0.69175669,95562.0,95561.0,0.000851]
[1739947399689,0.40348814,95562.0,95561.0,0.000851]
[1739947399889,0.56045414,95562.0,95561.0,0.000851]
[1739947400519,0.56445414,95562.0,95561.0,0.000851]
[1739947401525,0.56487964,95562.0,95561.0,0.000851]
[1739947401960,0.57283957,95562.0,95561.0,0.000851]
[1739947404817,0.306971,95559.0,95558.0,0.000851]
[1739947406038,0.309971,95559.0,95558.0,0.000851]
[1739947407283,0.56345914,95559.0,95558.0,0.000851]
[1739947408020,0.56045914,95559.0,95558.0,0.000851]
[1739947408268,0.56545914,95559.0,95558.0,0.000851]
[1739947408676,0.56045914,95559.0,95558.0,0.000851]
[1739947408889,0.56545914,95559.0,95558.0,0.000851]
[1739947420536,0.156982,95552.0,95551.0,0.000851]
[1739947421306,0.209301,95556.0,95542.0,0.0463018]
[1739947421554,0.156997,95543.0,95542.0,0.0463018]
[1739947421757,0.156997,95543.0,95542.0,0.04673889]
[1739947422609,0.156997,95543.0,95542.0,0.04773889]
[1739947427526,0.156997,95543.0,95542.0,0.04858989]
[1739947428242,0.209327,95545.0,95542.0,0.04858989]
[1739947428243,0.156995,95544.0,95542.0,0.04858989]
[1739947428544,0.209327,95545.0,95542.0,0.04858989]
[1739947428996,0.156997,95543.0,95542.0,0.04858989]
[1739947429476,0.156997,95543.0,95542.0,0.04758989]
[1739947431429,0.156997,95543.0,95542.0,0.04858989]
[1739947435299,0.156997,95543.0,95542.0,0.00228809]
[1739947436590,0.2950657,95542.0,95540.0,0.0766]
[1739947436789,0.2950657,95542.0,95541.0,0.00089487]
[1739947438392,0.2950657,95542.0,95541.0,0.00189487]
[1739947442544,0.2950657,95542.0,95541.0,0.00089487]
[1739947451474,0.156999,95542.0,95541.0,0.00089487]
[1739947451813,0.157012,95534.0,95533.0,0.1282]
[1739947456424,0.16995458,95536.0,95533.0,0.1282]
[1739947456626,0.157012,95534.0,95533.0,0.1282]
[1739947462124,0.307012,95534.0,95533.0,0.0812]
[1739947463833,0.15,95534.0,95533.0,0.0812]
[1739947464104,0.307012,95534.0,95533.0,0.13796]
[1739947464317,0.13717182,95541.0,95534.0,0.0491]
[1739947464516,0.13717182,95541.0,95535.0,0.0769]
[1739947464761,0.157002,95540.0,95535.0,0.0769]
[1739947464998,0.209325,95546.0,95535.0,0.0769]
[1739947465241,0.157002,95540.0,95535.0,0.0769]
[1739947466134,0.157004,95539.0,95535.0,0.0769]
[1739947466333,0.308002,95541.0,95535.0,0.0769]
[1739947466641,0.1574276,95540.0,95535.0,0.0769]
[1739947467246,0.0004256,95540.0,95535.0,0.0769]
[1739947467746,0.1574276,95540.0,95535.0,0.0769]
[1739947468450,0.1584276,95540.0,95535.0,0.0769]
[1739947468703,0.1574276,95540.0,95535.0,0.0769]
[1739947468914,0.0004256,95540.0,95535.0,0.0769]
[1739947470162,0.0004256,95540.0,95539.0,0.157003]
[1739947470413,0.0004256,95540.0,95539.0,0.239003]
[1739947470830,0.0004256,95540.0,95539.0,0.082]
[1739947471332,0.0004256,95540.0,95539.0,0.239003]
[1739947473570,0.0004256,95540.0,95539.0,0.082]
[1739947475495,0.0004256,95540.0,95539.0,0.239003]
[1739947475673,0.0004256,95540.0,95539.0,0.082]
[1739947476507,0.0004256,95540.0,95539.0,0.239003]
[1739947476717,0.0004256,95540.0,95539.0,0.082]
[1739947477421,0.0004256,95540.0,95539.0,0.239003]
[1739947477926,0.0004256,95540.0,95539.0,0.2398542]
[1739947488972,0.0004256,95540.0,95539.0,0.0828512]
[1739947493729,0.0004256,95540.0,95539.0,0.2398542]
[1739947494077,0.00036916,95540.0,95539.0,0.2398542]
[1739947497865,0.00036916,95540.0,95539.0,0.34235785]
[1739947498468,0.00036916,95540.0,95539.0,0.39035785]
[1739947500309,0.00036916,95540.0,95539.0,0.40345484]
[1739947500490,0.00036916,95540.0,95539.0,0.57645484]
[1739947500872,0.00036916,95540.0,95539.0,0.58430426]
[1739947501882,0.00036916,95540.0,95539.0,0.57120727]
[1739947505577,0.00036916,95540.0,95539.0,0.89580727]
[1739947522509,0.00136916,95540.0,95539.0,0.89580727]
[1739947529056,0.15,95591.0,95540.0,0.173]
[1739947529261,0.1569877,95576.0,95569.0,0.156954]
[1739947529778,4.37e-05,95576.0,95567.0,0.209277]
[1739947529974,0.156945,95575.0,95568.0,0.156954]
[1739947530273,4.37e-05,95576.0,95567.0,0.10250365]
[1739947530408,0.209259,95575.0,95567.0,0.10250365]
[1739947530634,0.209261,95574.0,95567.0,0.10250365]
[1739947530819,4.37e-05,95576.0,95567.0,0.10250365]
[1739947530820,0.156949,95573.0,95567.0,0.10250365]
[1739947531754,0.233847,95574.0,95567.0,0.25946065]
[1739947532281,0.004,95573.0,95567.0,0.25946065]
[1739947532491,0.233847,95574.0,95551.0,0.3246]
[1739947532492,0.0769,95574.0,95551.0,0.3246]
[1739947532696,0.156954,95569.0,95562.0,0.156965]
[1739947532909,0.0468,95570.0,95555.0,0.00784418]
[1739947533126,0.156954,95569.0,95561.0,0.156967]
[1739947533331,0.0468,95570.0,95561.0,0.156967]
[1739947533535,0.156956,95568.0,95561.0,0.156967]
[1739947533867,0.156956,95568.0,95563.0,0.0212459]
[1739947535180,0.158956,95568.0,95563.0,0.0212459]
[1739947535411,0.156956,95568.0,95563.0,0.0212459]
[1739947535828,0.158956,95568.0,95563.0,0.0212459]
[1739947536040,0.002,95568.0,95563.0,0.1782099]
[1739947536432,0.002,95568.0,95563.0,0.0212459]
[1739947536646,0.002,95568.0,95565.0,0.15696]
[1739947536855,0.002,95568.0,95566.0,0.213639]
[1739947537068,0.002,95568.0,95567.0,0.156957]
[1739947537717,0.046,95579.0,95563.0,0.0212459]
[1739947537927,0.002,95568.0,95566.0,0.156959]
[1739947538154,0.002,95568.0,95567.0,0.25946065]
[1739947538359,0.01353156,95581.0,95568.0,0.209275]
[1739947538569,0.156941,95578.0,95568.0,0.209275]
[1739947538786,0.209249,95580.0,95571.0,0.15695]
[1739947538994,0.01353156,95581.0,95567.0,0.10250365]
[1739947539199,0.01353156,95581.0,95568.0,0.00104625]
[1739947539414,0.1573654,95578.0,95567.0,0.10440071]
[1739947539624,0.1573654,95578.0,95571.0,0.15695]
[1739947539833,0.0004254,95578.0,95570.0,0.156952]
[1739947540469,0.1569867,95576.0,95570.0,0.156952]
[1739947540874,0.1619867,95576.0,95570.0,0.156952]
[1739947541081,0.1569867,95576.0,95570.0,0.156952]
[1739947541566,0.0050437,95576.0,95570.0,0.156952]
[1739947542305,0.1619867,95576.0,95567.0,0.26031045]
[1739947542433,0.0050437,95576.0,95568.0,0.156955]
[1739947542662,0.0050437,95576.0,95567.0,0.10335445]
[1739947542663,0.0050437,95576.0,95569.0,0.156954]
[1739947542892,0.0050437,95576.0,95568.0,0.156956]
[1739947543520,0.0050437,95576.0,95567.0,0.10335445]
[1739947543744,0.0050437,95576.0,95569.0,0.0813]
[1739947543947,4.37e-05,95576.0,95575.0,0.156944]
[1739947544164,4.37e-05,95576.0,95571.0,0.209268]
[1739947544593,4.37e-05,95576.0,95575.0,0.156944]
[1739947544806,0.0050437,95576.0,95575.0,0.156944]
[1739947545014,4.37e-05,95576.0,95575.0,0.156944]
[1739947545419,0.0050437,95576.0,95575.0,0.156944]
[1739947546423,4.37e-05,95576.0,95575.0,0.156944]
[1739947547620,0.0050437,95576.0,95575.0,0.156944]
[1739947549249,0.0050437,95576.0,95575.0,0.1579902]
[1739947549482,0.0050437,95576.0,95575.0,0.156944]
[1739947550633,0.0050437,95576.0,95573.0,0.156946]
[1739947550785,0.0050437,95576.0,95574.0,0.25944865]
[1739947550976,0.0050437,95576.0,95575.0,0.1577948]
[1739947551554,4.37e-05,95576.0,95575.0,0.1577948]
[1739947551900,0.0050437,95576.0,95575.0,0.1577948]
[1739947552128,4.37e-05,95576.0,95575.0,0.1577948]
[1739947552499,0.0050437,95576.0,95575.0,0.1577948]
[1739947553555,0.0050437,95576.0,95575.0,0.0008508]
[1739947556466,0.00442106,95576.0,95575.0,0.0008508]
[1739947557638,0.16136406,95576.0,95575.0,0.0008508]
[1739947559248,0.00442106,95576.0,95575.0,0.0008508]
[1739947563479,0.156936,95580.0,95575.0,0.0008508]
[1739947563644,0.15737304,95580.0,95575.0,0.0008508]
[1739947564218,0.00043704,95580.0,95575.0,0.1577948]
[1739947564434,0.00043704,95580.0,95575.0,0.0008508]
[1739947564597,0.00043704,95580.0,95576.0,0.156942]
[1739947564805,0.00043704,95580.0,95576.0,0.156943]
[1739947564806,0.00643704,95580.0,95576.0,0.156943]
[1739947565619,0.00043704,95580.0,95575.0,0.1577948]
[1739947566958,0.00043704,95580.0,95575.0,0.0008508]
[1739947567175,0.00543704,95580.0,95575.0,0.1577948]
[1739947567411,0.00043704,95580.0,95575.0,0.0008508]
[1739947567767,0.15543704,95580.0,95575.0,0.0008508]
[1739947568251,0.156941,95577.0,95575.0,0.0008508]
[1739947568491,0.209251,95579.0,95575.0,0.0008508]
[1739947568717,0.156939,95578.0,95575.0,0.0008508]
[1739947568933,0.209251,95579.0,95575.0,0.0008508]
[1739947569166,0.156938,95579.0,95575.0,0.0008508]
[1739947570369,0.15694,95578.0,95575.0,0.0008508]
[1739947570566,0.15,95581.0,95575.0,0.0008508]
[1739947570798,0.359247,95581.0,95575.0,0.0008508]
[1739947571018,0.156939,95579.0,95575.0,0.0008508]
[1739947571416,0.005,95578.0,95575.0,0.0008508]
[1739947571781,0.156939,95579.0,95575.0,0.0008508]
[1739947572274,0.156939,95579.0,95575.0,0.0018508]
[1739947572722,0.15,95578.0,95575.0,0.0018508]
[1739947573820,0.0004255,95579.0,95575.0,0.0008508]
[1739947574037,0.003,95578.0,95575.0,0.0008508]
[1739947574496,0.153,95578.0,95575.0,0.0008508]
[1739947574815,0.15,95578.0,95575.0,0.0008508]
[1739947575501,0.0004255,95579.0,95575.0,0.0008508]
[1739947576834,0.004,95578.0,95575.0,0.0008508]
[1739947577069,0.0004255,95579.0,95575.0,0.0008508]
[1739947577520,0.0054255,95579.0,95575.0,0.0008508]
[1739947577707,0.0004255,95579.0,95575.0,0.0008508]
[1739947577916,0.004,95578.0,95575.0,0.0008508]
[1739947578320,0.0004255,95579.0,95575.0,0.0008508]
[1739947579077,0.0054255,95579.0,95575.0,0.0008508]
[1739947579494,0.15,95578.0,95575.0,0.0008508]
[1739947580343,0.0054255,95579.0,95575.0,0.1577948]
[1739947580344,0.0004255,95579.0,95575.0,0.1577948]
[1739947580546,0.0004255,95579.0,95575.0,0.0008508]
[1739947580751,0.004,95578.0,95575.0,0.0008508]
[1739947581630,0.0004255,95579.0,95575.0,0.0008508]
[1739947581835,0.0054255,95579.0,95575.0,0.0008508]
[1739947582190,0.0004255,95579.0,95575.0,0.0008508]
[1739947582771,0.15,95578.0,95575.0,0.0008508]
[1739947583399,0.154,95578.0,95575.0,0.0008508]
[1739947584318,0.004,95578.0,95575.0,0.0008508]
[1739947588375,0.004,95578.0,95575.0,0.1577948]
[1739947591941,0.004,95578.0,95575.0,0.0008508]
[1739947597455,0.004,95578.0,95576.0,0.156942]
[1739947597714,0.004,95578.0,95575.0,0.0008508]
[1739947598328,0.0004255,95579.0,95575.0,0.0008508]
[1739947599703,0.004,95578.0,95575.0,0.0008508]
[1739947599926,0.0004255,95579.0,95575.0,0.0008508]
[1739947600386,0.0054255,95579.0,95575.0,0.0008508]
[1739947600590,0.0004255,95579.0,95575.0,0.0008508]
[1739947600999,0.004,95578.0,95575.0,0.0008508]
[1739947601141,0.0004255,95579.0,95575.0,0.0008508]
[1739947601342,0.0054255,95579.0,95575.0,0.0008508]
[1739947603395,0.156939,95578.0,95575.0,0.0008508]
[1739947603821,0.0054255,95579.0,95575.0,0.0008508]
[1739947604319,0.0004255,95579.0,95575.0,0.0008508]
[1739947604525,0.004,95578.0,95575.0,0.0008508]
[1739947605021,0.1573635,95579.0,95575.0,0.0008508]
[1739947605846,0.0004255,95579.0,95575.0,0.0008508]
[1739947606264,0.0054255,95579.0,95575.0,0.0008508]
[1739947606892,0.156936,95580.0,95575.0,0.0008508]
[1739947608107,0.156933,95582.0,95576.0,0.156943]
[1739947608315,0.22225469,95583.0,95575.0,0.0008508]
[1739947608519,0.156934,95581.0,95575.0,0.1577948]
[1739947608718,0.209244,95582.0,95575.0,0.0008508]
[1739947608947,0.209244,95582.0,95575.0,0.1577948]
[1739947609139,0.156935,95581.0,95575.0,0.1577948]
[1739947609469,0.003,95580.0,95575.0,0.1577948]
[1739947609666,0.156935,95581.0,95575.0,0.1577948]
[1739947613291,0.156936,95580.0,95575.0,0.1577948]
[1739947613751,0.156936,95580.0,95575.0,0.0008508]
[1739947614915,0.159938,95580.0,95575.0,0.0008508]
[1739947615122,0.159938,95580.0,95575.0,0.1577948]
[1739947615123,0.003,95580.0,95575.0,0.1577948]
[1739947615280,0.159937,95580.0,95575.0,0.0008508]
[1739947615931,0.156938,95579.0,95575.0,0.0008508]
[1739947617121,0.156936,95580.0,95575.0,0.0008508]
[1739947617316,0.003,95579.0,95575.0,0.0008508]
[1739947618584,0.003,95579.0,95575.0,0.1577938]
[1739947619189,0.003,95579.0,95575.0,0.0008508]
[1739947619966,0.003,95579.0,95575.0,0.1577948]
[1739947620166,0.003,95579.0,95575.0,0.0008508]
[1739947620663,0.003,95579.0,95575.0,0.1577948]
[1739947621682,0.003,95579.0,95575.0,0.0008508]
[1739947622103,0.159939,95579.0,95575.0,0.0008508]
[1739947622310,0.003,95579.0,95575.0,0.0008508]
[1739947624716,0.159938,95579.0,95575.0,0.0008508]
[1739947624925,0.003,95579.0,95575.0,0.0008508]
[1739947625340,0.159938,95579.0,95575.0,0.0008508]
[1739947626980,0.159938,95579.0,95576.0,0.01962887]
[1739947628199,0.156938,95579.0,95576.0,0.01962887]
[1739947628404,0.156938,95579.0,95577.0,0.01962887]
[1739947629372,0.159938,95579.0,95577.0,0.01962887]
[1739947629632,0.159938,95579.0,95578.0,0.01962887]
[1739947629838,0.156938,95579.0,95578.0,0.01962887]
[1739947630065,0.159938,95579.0,95578.0,0.01962887]
[1739947630900,0.156938,95579.0,95578.0,0.01962887]
[1739947631362,0.003,95579.0,95578.0,0.01962887]
[1739947639222,0.00290216,95579.0,95578.0,0.01962887]
[1739947642085,0.2096624,95586.0,95578.0,0.01962887]
[1739947642293,0.156934,95582.0,95578.0,0.01962887]
[1739947643358,0.20924,95584.0,95578.0,0.01962887]
[1739947643603,0.156931,95583.0,95578.0,0.01962887]
[1739947644076,0.003,95582.0,95578.0,0.01962887]
[1739947644238,0.156931,95583.0,95579.0,0.01962887]
[1739947645243,0.1573565,95583.0,95579.0,0.01962887]
[1739947645664,0.156933,95582.0,95580.0,0.01962887]
[1739947648032,0.156933,95582.0,95581.0,0.01962887]
[1739947649855,0.0004255,95583.0,95582.0,0.235533]
[1739947650721,0.0004255,95583.0,95582.0,0.25516187]
[1739947651118,0.0004255,95583.0,95582.0,0.35766552]
[1739947652542,0.0004255,95583.0,95582.0,0.36438411]
[1739947653370,0.0004255,95583.0,95582.0,0.37138411]
[1739947654607,0.0004255,95583.0,95582.0,0.3852209]
[1739947657858,0.0004255,95583.0,95582.0,0.3860719]
[1739947658057,0.156909,95597.0,95582.0,0.2291389]
[1739947658265,4.366e-05,95586.0,95584.0,0.20924]
[1739947658460,4.366e-05,95586.0,95585.0,0.10250365]
[1739947658828,4.366e-05,95586.0,95585.0,0.25943165]
[1739947659667,0.01563754,95586.0,95585.0,0.27906052]
[1739947659868,4.366e-05,95586.0,95585.0,0.35776052]
[1739947660174,4.366e-05,95586.0,95585.0,0.36376052]
[1739947661588,0.01631505,95586.0,95585.0,0.36376052]
[1739947661805,4.366e-05,95586.0,95585.0,0.36376052]
[1739947662873,0.0156711,95586.0,95585.0,0.36376052]
[1739947663083,4.366e-05,95586.0,95585.0,0.36376052]